{"text_format":"1","workbook":"xlsx","n_sheets":2,"sheets":["matarka","nyers"],"not_rendered":{"charts":0,"images":0,"macros":1,"external_links":0,"defined_names":0,"comments":0,"pivot_tables":0},"unopened":[],"bounds":{"document_bytes":16777216,"sheet_cells":100000,"rows_first":2000,"rows_last":500,"rows_between":2000,"halvings":0,"cell_chars":16384,"cell_head_chars":4096},"cells_cut":0,"cells_raw":0,"read":"whole","date_system":"1900"}

{"sheet":"matarka","index":0,"n_rows":61,"n_cols":2,"rows_kept":61,"cut":false,"hidden":false,"merged":[]}
[null,"***"]
["Magyar Internetes Agrárinformatikai Újság (MIAÚ),2017,20,227"]
[{"$f":"nyers!F1","v":"miau227"},"Pitlik Marcell-Pitlik László:Nemzetközi nyers és modellezett vízgazdálkodási adatok komplex értékelése idősoros és regionális szempontból   xx  http://miau.gau.hu/miau/227/enyedi_faoaquastat_pM.docx"]
[{"$f":"nyers!F3","v":"miau227"},"Pitlik László, ifj.,-Pitlik László:A nők aránya a felsőoktatásban \u0096 a nemzetközi adatok komplex értékelése regionális és idősoros szempontból   xx  http://miau.gau.hu/miau/227/enyedi_unesco_pL_hu.docx"]
[{"$f":"nyers!F5","v":"miau227"},"Pitlik László,  ifj.,-Pitlik László:Frauenanteil im Hochschulbereich \u0096 Eine komplexe Analyse von internationalen Daten unter dem Gesichtspunkt der Regionalität und von Zeitreihen  xx  http://miau.gau.hu/miau/227/enyedi_unesco_pL_de.docx"]
[{"$f":"nyers!F7","v":"miau227"},"Pitlik Marcell:Példatár: Ár/érték-arány vizsgálata laptopokra   xx  http://miau.gau.hu/miau/227/Inspiron7566.xlsx"]
[{"$f":"nyers!F9","v":"miau227"},"Pitlik Marcell:Példatár: A háromszög képletei   xx  http://miau.gau.hu/miau/227/haromszogek.xlsx"]
[{"$f":"nyers!F11","v":"miau227"},"Pitlik László-Pitlik László, ifj.-Pitlik Mátyás-Pitlik Marcell :Példatár: Mintafeladatok a matematikai kompetencia-mérő országos rendszerhez   xx  http://miau.gau.hu/miau/227/feladatiro_casting/"]
[{"$f":"nyers!F13","v":"miau227"},"Pitlik László-Pitlik László, ifj.:Excel-Példatár: Ésszel vagy erőből - avagy a matematikai hatékonyságról   xx  http://miau.gau.hu/miau/227/V04.xlsx"]
[{"$f":"nyers!F15","v":"miau227"},"Pitlik László :Példatár: Excel-alapú szemléletformáláshoz már általános iskola felső tagozattól - Indiai szorzás   xx  http://miau.gau.hu/miau/227/india_szorzas_excel_full.xlsx"]
[{"$f":"nyers!F17","v":"miau227"},"Kóródi Gyula-Pitlik László-Pitlik Marcell :Sport-pszichológiai tesztek adatvagyona és értelmezési potenciálja   xx  http://miau.gau.hu/miau/227/vienna_v2.docx"]
["Magyar Internetes Agrárinformatikai Újság (MIAÚ),2017,20,228"]
[{"$f":"nyers!F19","v":"miau228"},"Pitlik László:Robotszem II.   xx  http://miau.gau.hu/miau/228/robotszem2.docx"]
[{"$f":"nyers!F21","v":"miau228"},"Pitlik László-Nagy Zoltán:APETIT \u0096 Innováció-katalizáló tanfolyam a szervezeti kultúra fejlesztésére   xx  http://miau.gau.hu/miau/kofop/apetit.docx"]
[{"$f":"nyers!F23","v":"miau228"},"Barta Gergő-Pitlik László:Startup felvásárlások multikulturális hátterének elemzése, avagy mesterséges intelligencia alapú ellenőrzőszámítás diszkriminancia-elemzéshez   xx  http://miau.gau.hu/miau/228/Barta, Pitlik - III. Multikulturalitas konferencia Cikk.docx"]
["Magyar Internetes Agrárinformatikai Újság (MIAÚ),2017,20,229"]
[{"$f":"nyers!A25","v":"miau229"},"Pitlik László-Pitlik Mátyás-Pitlik Marcell-Pitlik László, ifj.-Varga Zoltán-Barta Gergő-Losonczi György:Magyar statisztikai régiók érintettégi sorrendje a szálláshelyek árbevételének havi adatai alapján eltérő módszertanokkal  xx  http://miau.gau.hu/miau/229/szarvas/szarvas_myx_team.ppt"]
[{"$f":"nyers!A27","v":"miau229"},"Pitlik László-Pitlik Mátyás-Pitlik Marcell-Pitlik László, ifj.-Varga Zoltán-Barta Gergő-Losonczi György:Magyar statisztikai régiók érintettégi sorrendje a szálláshelyek árbevételének havi adatai alapján eltérő módszertanokkal  xx  http://miau.gau.hu/miau/229/szarvas/szarvas_myx_team_v2.doc"]
[{"$f":"nyers!A29","v":"miau229"},"Pitlik László, ifj.-Pitlik László:Frauenanteil im Hochschulbereich - Eine komplexe Analyse von internationalen Daten unter dem Gesichtspunkt der Regionalität und von Zeitreihen  xx  http://miau.gau.hu/miau/229/enyedi2/enyedi2.mp3"]
[{"$f":"nyers!A31","v":"miau229"},"Pitlik László, ifj.-Pitlik László:Frauenanteil im Hochschulbereich - Eine komplexe Analyse von internationalen Daten unter dem Gesichtspunkt der Regionalität und von Zeitreihen  xx  http://miau.gau.hu/miau/229/enyedi2/Unesco_Enyedi_pL_PL.ppt"]
[{"$f":"nyers!A33","v":"miau229"},"Pitlik László, ifj.-Pitlik László:Frauenanteil im Hochschulbereich - Eine komplexe Analyse von internationalen Daten unter dem Gesichtspunkt der Regionalität und von Zeitreihen  xx  http://miau.gau.hu/miau/229/enyedi2/frauenanteil_pl_pl.docx"]
[{"$f":"nyers!A35","v":"miau229"},"Pitlik Marcell-Pitlik László:Nemzetközi, nyers és modellezett vízgazdálkodási adatok komplex értékelése idősoros és regionális szempontból  xx  http://miau.gau.hu/miau/229/enyedi1/enyedi1.mp3"]
[{"$f":"nyers!A37","v":"miau229"},"Pitlik Marcell-Pitlik László:Nemzetközi, nyers és modellezett vízgazdálkodási adatok komplex értékelése idősoros és regionális szempontból  xx  http://miau.gau.hu/miau/229/enyedi1/Hlavay_Enyedi_PM_PL.ppt"]
[{"$f":"nyers!A39","v":"miau229"},"Pitlik Marcell-Pitlik László:Nemzetközi, nyers és modellezett vízgazdálkodási adatok komplex értékelése idősoros és regionális szempontból  xx  http://miau.gau.hu/miau/229/enyedi1/hlavay_enyedi_pm_pl.docx"]
[{"$f":"nyers!A41","v":"miau229"},"Pitlik László-Szani Ferenc:Maugli keresése - robotszemmel  xx  http://miau.gau.hu/miau/229/robotszem.pptx"]
[{"$f":"nyers!A43","v":"miau229"},"Balogh Anikó-Pitlik László-Szani Ferenc:Ipar4.0 - a tudásmenedzsment legújabb kihívásai az oktatásban   xx  http://miau.gau.hu/miau/229/revkomarom/revkomarom_v2.ppt"]
[{"$f":"nyers!A45","v":"miau229"},"Balogh Anikó-Pitlik László-Szani Ferenc:Az Ipar4.0: a tudásmenedzsment legújabb kihívásai az oktatásban   xx  http://miau.gau.hu/miau/229/revkomarom/cikk7_hun_revkomarom_vttkdoc0_stateofart_final_v2.docx"]
["Magyar Internetes Agrárinformatikai Újság (MIAÚ),2017,20,230"]
[{"$f":"nyers!A47","v":"miau230"},"Pitlik László-Szani Ferenc:PLA-felmérés OLAP-témakörben  xx  http://miau.gau.hu/miau/230/PLA_v2.docx"]
[{"$f":"nyers!A49","v":"miau230"},"Pitlik László-Szani Ferenc:Meta-adatok definiálása származtatott jelenségek esetén OLAP szolgáltatások fejlesztése keretében  xx  http://miau.gau.hu/miau/230/olap_education_meta_v2.docx"]
[{"$f":"nyers!A51","v":"miau230"},"Nagy Zoltán-Pitlik László:Helyzet-szimulációs tananyagfejlesztés elmélete és gyakorlata  xx  http://miau.gau.hu/miau/230/szimulacio_v2.docx"]
["Magyar Internetes Agrárinformatikai Újság (MIAÚ),2017,20,231"]
[{"$f":"nyers!A53","v":"miau231"},"X:A mindenki-másként-egyforma-elv a szakirodalomban  xx  http://miau.gau.hu/miau/231/onkomm_mindenki_maskent_egyforma.docx"]
[{"$f":"nyers!A55","v":"miau231"},"Alföldy@Boruss András-Pitlik László:NG-stress - adatvizualizációs katalógus  xx  http://miau.gau.hu/miau/231/NGStress_patterns.pdf"]
[{"$f":"nyers!A57","v":"miau231"},"Pitlik László-Balogh Anikó-Szani Ferenc:Értéksorrend-becslés hasonlóságelemzéssel  xx  http://miau.gau.hu/miau/231/mtu2017/ertekkutatas_mtu_1_abs_hu_1012.docx"]
[{"$f":"nyers!A59","v":"miau231"},"Pitlik László-Balogh Anikó-Szani Ferenc:Értéksorrend-becslés hasonlóságelemzéssel  xx  http://miau.gau.hu/miau/231/mtu2017/full1_hu.ppt"]
[{"$f":"nyers!A61","v":"miau231"},"Pitlik László-Balogh Anikó-Szani Ferenc:Értéksorrend-becslés hasonlóságelemzéssel  xx  http://miau.gau.hu/miau/231/mtu2017/ertekkutatas_mtu_1_full_hu.docx"]
[{"$f":"nyers!A63","v":"miau231"},"Pitlik László-Balogh Anikó-Szani Ferenc:Multidimensional pairwise comparison - about human-oriented science regarding artificial intelligence and value surveys  xx  http://miau.gau.hu/miau/231/mtu2017/ertekkutatas_mtu_2_abs_en_1012.docx"]
[{"$f":"nyers!A65","v":"miau231"},"Pitlik László-Balogh Anikó-Szani Ferenc:Multidimenzionális pár-összehasonlítás, avagy az emberközpontú tudományról a mesterséges intelligencia és az értékkutatás szemszögéből  xx  http://miau.gau.hu/miau/231/mtu2017/full2_hu.ppt"]
[{"$f":"nyers!A67","v":"miau231"},"Pitlik László-Balogh Anikó-Szani Ferenc:Multidimensional pairwise comparison - about human-oriented science regarding artificial intelligence and value surveys  xx  http://miau.gau.hu/miau/231/mtu2017/full2_en.ppt"]
[{"$f":"nyers!A69","v":"miau231"},"Pitlik László-Balogh Anikó-Szani Ferenc:Multidimensional pairwise comparison - about human-oriented science regarding artificial intelligence and value surveys  xx  http://miau.gau.hu/miau/231/mtu2017/ertekkutatas_mtu_2_full_en_1108.docx"]
[{"$f":"nyers!A71","v":"miau231"},"Pitlik László-Balogh Anikó-Szani Ferenc:Pár-összehasonlítások Likert-skálás és/vagy idősoros adatok alapján  xx  http://miau.gau.hu/miau/231/mtu2017/ertekkutatas_mtu_3_abs_en_1012.docx"]
[{"$f":"nyers!A73","v":"miau231"},"Pitlik László-Balogh Anikó-Szani Ferenc:Pár-összehasonlítások Likert-skálás és/vagy idősoros adatok alapján  xx  http://miau.gau.hu/miau/231/mtu2017/full3_hu.ppt"]
[{"$f":"nyers!A75","v":"miau231"},"Pitlik László-Balogh Anikó-Szani Ferenc:Pairwise object comparison based on Likert-scales and time serie  xx  http://miau.gau.hu/miau/231/mtu2017/full3_en.pptx"]
[{"$f":"nyers!A77","v":"miau231"},"Pitlik László-Balogh Anikó-Szani Ferenc:Pairwise object comparison based on Likert-scales and time serie  xx  http://miau.gau.hu/miau/231/mtu2017/ertekkutatas_mtu_3_full_en_1027.docx"]
["Magyar Internetes Agrárinformatikai Újság (MIAÚ),2017,20,232"]
[{"$f":"nyers!A79","v":"miau232"},"Pitlik László:Nem deklaratív feladat-értékelési rendszer generálása  xx  http://miau.gau.hu/miau/232/teszt-javaslat-v1.xlsx"]
[{"$f":"nyers!A81","v":"miau232"},"Pitlik László:Inkonzisztencia-vizsgálatok lehetősége kérdőíves válaszok alapján  xx  http://miau.gau.hu/miau/232/elegedettsegi_hermeneutikak_v2.docx"]
[{"$f":"nyers!A83","v":"miau232"},"Pitlik László-Pitlik László, ifj.:Példák az Excel-alapú szemléletformáláshoz  xx  http://miau.gau.hu/miau/232/kerdoiv_demo.xlsx"]
[{"$f":"nyers!A85","v":"miau232"},"Pitlik László-Szani Ferenc-Balogh Anikó:Dashboards and OLAP services in LLL and distance learning processes or Experiences about log-based learning- and education-management  xx  http://miau.gau.hu/miau/kofop/hassacc_apertus.ppt"]
[{"$f":"nyers!A87","v":"miau232"},"Pitlik László-Szani Ferenc:1 knut, avagy új mértékegység a tudásmenedzsmentben  xx  http://miau.gau.hu/miau/kofop/tomori.mp4"]
[{"$f":"nyers!A89","v":"miau232"},"Pitlik László-Balogh Anikó-Szani Ferencen-Schnellbach Máté:Teljesítmény-katalógus 2017  xx  http://miau.gau.hu/miau/kofop/2017.docx"]
[{"$f":"nyers!A91","v":"miau232"},"Pitlik László-Balogh Anikó-Schnellbach Máté-Szani Ferenc:Dashboards and OLAP services in LLL and distance learning processes or experiences about log-based learning- and education-management  xx  http://miau.gau.hu/miau/kofop/hassacc_244.pdf"]
[null,"***"]
[null,{"$f":"nyers!G95&nyers!H95&nyers!I95&nyers!J95&nyers!K95","v":""}]
[null,{"$f":"nyers!G97&nyers!H97&nyers!I97&nyers!J97&nyers!K97","v":""}]
[null,{"$f":"nyers!G99&nyers!H99&nyers!I99&nyers!J99&nyers!K99","v":""}]
[null,{"$f":"nyers!G101&nyers!H101&nyers!I101&nyers!J101&nyers!K101","v":""}]
[null,{"$f":"nyers!G103&nyers!H103&nyers!I103&nyers!J103&nyers!K103","v":""}]
[null,{"$f":"nyers!G105&nyers!H105&nyers!I105&nyers!J105&nyers!K105","v":""}]
[null,{"$f":"nyers!G107&nyers!H107&nyers!I107&nyers!J107&nyers!K107","v":""}]

{"sheet":"nyers","index":1,"n_rows":92,"n_cols":14,"rows_kept":92,"cut":false,"hidden":false,"merged":[[88,3,89,3],[90,2,91,2],[90,3,91,3],[78,3,79,3],[80,3,81,3],[82,3,83,3],[84,2,85,2],[84,3,85,3],[86,3,87,3],[68,2,69,2],[68,3,69,3],[70,3,71,3],[72,3,73,3],[74,3,75,3],[76,3,77,3],[62,2,63,2],[62,3,63,3],[64,2,65,2],[64,3,65,3],[66,2,67,2],[66,3,67,3],[50,3,51,3],[52,3,53,3],[54,3,55,3],[56,3,57,3],[58,3,59,3],[60,3,61,3],[38,3,39,3],[40,3,41,3],[42,3,43,3],[44,3,45,3],[46,3,47,3],[48,3,49,3],[30,2,31,2],[30,3,31,3],[32,2,33,2],[32,3,33,3],[34,3,35,3],[36,3,37,3],[22,2,23,2],[22,3,23,3],[24,3,25,3],[26,3,27,3],[28,2,29,2],[28,3,29,3],[12,3,13,3],[14,3,15,3],[16,3,17,3],[18,2,19,2],[18,3,19,3],[20,2,21,2],[20,3,21,3],[0,3,1,3],[2,3,3,3],[4,3,5,3],[6,3,7,3],[8,3,9,3],[10,3,11,3],[12,2,13,2],[14,2,15,2],[16,2,17,2],[6,2,7,2],[8,2,9,2],[10,2,11,2],[0,2,1,2],[2,2,3,2],[4,2,5,2]]}
["miau227","Pitlik Marcell, Pitlik László","Nemzetközi nyers és modellezett vízgazdálkodási adatok komplex értékelése idősoros és regionális szempontból (Complex evaluation of internationaltimeseries from regional point of view in case of data assets about water management)","(+)",null,{"$f":"A1","v":"miau227"},{"$f":"B1","v":"Pitlik Marcell, Pitlik László"},":","Nemzetközi nyers és modellezett vízgazdálkodási adatok komplex értékelése idősoros és regionális szempontból ","  xx  ","http://miau.gau.hu/miau/227/enyedi_faoaquastat_pM.docx",null,"Complex evaluation of internationaltimeseries from regional point of view in case of data assets about water management)"]
[null,"(My-X team):"]
["miau227","Pitlik László (jun), Pitlik László","A nők aránya a felsőoktatásban \u0096 a nemzetközi adatok komplex értékelése regionális és idősoros szempontból (Ratio of women in universities - complex evaluation of international timeseries from regional point of view)","(+)",null,{"$f":"F1","v":"miau227"},{"$f":"B3","v":"Pitlik László (jun), Pitlik László"},":","A nők aránya a felsőoktatásban \u0096 a nemzetközi adatok komplex értékelése regionális és idősoros szempontból ","  xx  ","http://miau.gau.hu/miau/227/enyedi_unesco_pL_hu.docx",null,"Ratio of women in universities - complex evaluation of international timeseries from regional point of view)"]
[null,"(My-X team):"]
["miau227","Pitlik László (jun), Pitlik László","Frauenanteil im Hochschulbereich \u0096 Eine komplexe Analyse von internationalen Daten unter dem Gesichtspunkt der Regionalität und von Zeitreihen","(+)",null,{"$f":"F3","v":"miau227"},{"$f":"B5","v":"Pitlik László (jun), Pitlik László"},":","Frauenanteil im Hochschulbereich \u0096 Eine komplexe Analyse von internationalen Daten unter dem Gesichtspunkt der Regionalität und von Zeitreihen","  xx  ","http://miau.gau.hu/miau/227/enyedi_unesco_pL_de.docx"]
[null,"(My-X team):"]
["miau227","Pitlik Marcell","Példatár: Ár/érték-arány vizsgálata laptopokra (Catalogue of cases: Optimizing price/performance ratios for laptops)","(+)",null,{"$f":"F5","v":"miau227"},{"$f":"B7","v":"Pitlik Marcell"},":","Példatár: Ár/érték-arány vizsgálata laptopokra ","  xx  ","http://miau.gau.hu/miau/227/Inspiron7566.xlsx",null,"Catalogue of cases: Optimizing price/performance ratios for laptops)"]
[null,"(My-X team):"]
["miau227","Pitlik Marcell","Példatár: A háromszög képletei (Catalogue of cases: Functions of triangles)","(+)",null,{"$f":"F7","v":"miau227"},{"$f":"B9","v":"Pitlik Marcell"},":","Példatár: A háromszög képletei ","  xx  ","http://miau.gau.hu/miau/227/haromszogek.xlsx",null,"Catalogue of cases: Functions of triangles)"]
[null,"(My-X team):"]
["miau227","Pitlik László, Pitlik László (jun), Pitlik Mátyás, Pitlik Marcell ","Példatár: Mintafeladatok a matematikai kompetencia-mérő országos rendszerhez (Catalogue of cases: Demo task in mathematics for the national measurement system of competences)","(+)",null,{"$f":"F9","v":"miau227"},{"$f":"B11","v":"Pitlik László, Pitlik László (jun), Pitlik Mátyás, Pitlik Marcell "},":","Példatár: Mintafeladatok a matematikai kompetencia-mérő országos rendszerhez ","  xx  ","http://miau.gau.hu/miau/227/feladatiro_casting/",null,"Catalogue of cases: Demo task in mathematics for the national measurement system of competences)"]
[null,"(My-X team):"]
["miau227","Pitlik László, Pitlik László (jun)","Excel-Példatár: Ésszel vagy erőből - avagy a matematikai hatékonyságról (Excel-Catalogue of cases: Mathematical efficiency of IQ-based or forced solutions)","(+)",null,{"$f":"F11","v":"miau227"},{"$f":"B13","v":"Pitlik László, Pitlik László (jun)"},":","Excel-Példatár: Ésszel vagy erőből - avagy a matematikai hatékonyságról ","  xx  ","http://miau.gau.hu/miau/227/V04.xlsx",null,"Excel-Catalogue of cases: Mathematical efficiency of IQ-based or forced solutions)"]
[null,"(My-X team):"]
["miau227","Pitlik László ","Példatár: Excel-alapú szemléletformáláshoz már általános iskola felső tagozattól - Indiai szorzás (Catalogue of cases for Excel-based education aiming changes in thinking methodology from teenagerhood on - Multiplication a la India)","(+)",null,{"$f":"F13","v":"miau227"},{"$f":"B15","v":"Pitlik László "},":","Példatár: Excel-alapú szemléletformáláshoz már általános iskola felső tagozattól - Indiai szorzás ","  xx  ","http://miau.gau.hu/miau/227/india_szorzas_excel_full.xlsx",null,"Catalogue of cases for Excel-based education aiming changes in thinking methodology from teenagerhood on - Multiplication a la India)"]
[null,"(My-X team):"]
["miau227","Kóródi Gyula, Pitlik László, Pitlik Marcell ","Sport-pszichológiai tesztek adatvagyona és értelmezési potenciálja (Hermeneutical potential and data asset in case of sport-psychological tests)","(+)",null,{"$f":"F15","v":"miau227"},{"$f":"B17","v":"Kóródi Gyula, Pitlik László, Pitlik Marcell "},":","Sport-pszichológiai tesztek adatvagyona és értelmezési potenciálja ","  xx  ","http://miau.gau.hu/miau/227/vienna_v2.docx",null,"Hermeneutical potential and data asset in case of sport-psychological tests)"]
[null,"(My-X team):"]
["miau228","Pitlik László","Robotszem II (Robot-Eye II)","(+)",null,{"$f":"A19","v":"miau228"},{"$f":"B19","v":"Pitlik László"},":","Robotszem II ","  xx  ","http://miau.gau.hu/miau/228/robotszem2.docx",null,"Robot-Eye II)"]
[null,"(MY-X team):"]
["miau228","Pitlik László, Nagy Zoltán","APETIT \u0096 Innováció-katalizáló tanfolyam a szervezeti kultúra fejlesztésére (APETIT \u0096 Catalysis of innovation processes as a kind of development of organizational culture)","(+)",null,{"$f":"F19","v":"miau228"},{"$f":"B21","v":"Pitlik László, Nagy Zoltán"},":","APETIT \u0096 Innováció-katalizáló tanfolyam a szervezeti kultúra fejlesztésére ","  xx  ","http://miau.gau.hu/miau/kofop/apetit.docx",null,"APETIT \u0096 Catalysis of innovation processes as a kind of development of organizational culture)"]
[null,"(MY-X team):"]
["miau228","Barta Gergő, Pitlik László","Startup felvásárlások multikulturális hátterének elemzése, avagy mesterséges intelligencia alapú ellenőrzőszámítás diszkriminancia-elemzéshez (Analyses about multicultural aspects of startups, or discriminance vs. artificial intelligence)","(+)",null,{"$f":"F21","v":"miau228"},{"$f":"B23","v":"Barta Gergő, Pitlik László"},":","Startup felvásárlások multikulturális hátterének elemzése, avagy mesterséges intelligencia alapú ellenőrzőszámítás diszkriminancia-elemzéshez ","  xx  ","http://miau.gau.hu/miau/228/Barta, Pitlik - III. Multikulturalitas konferencia Cikk.docx",null,"Analyses about multicultural aspects of startups, or discriminance vs. artificial intelligence)"]
[null,"(MY-X team):"]
["miau229","Pitlik László, Pitlik Mátyás, Pitlik Marcell, Pitlik László (jun), Varga Zoltán, Barta Gergő, Losonczi György","PPT: Magyar statisztikai régiók érintettégi sorrendje a szálláshelyek árbevételének havi adatai alapján eltérő módszertanokkal","(+)",null,{"$f":"A25","v":"miau229"},{"$f":"B25","v":"Pitlik László, Pitlik Mátyás, Pitlik Marcell, Pitlik László (jun), Varga Zoltán, Barta Gergő, Losonczi György"},":","PPT: Magyar statisztikai régiók érintettégi sorrendje a szálláshelyek árbevételének havi adatai alapján eltérő módszertanokkal","  xx  ","http://miau.gau.hu/miau/229/szarvas/szarvas_myx_team.ppt"]
[null,"(MY-X team):","(Analyses of time series (months) about the income from accodomation in tourism of statistic regions)",null,null,null,null,null,null,null,null,null,"Analyses of time series ","months) about the income from accodomation in tourism of statistic regions)"]
["miau229","Pitlik László, Pitlik Mátyás, Pitlik Marcell, Pitlik László (jun), Varga Zoltán, Barta Gergő, Losonczi György","Magyar statisztikai régiók érintettégi sorrendje a szálláshelyek árbevételének havi adatai alapján eltérő módszertanokkal","(+)",null,{"$f":"F25","v":"miau229"},{"$f":"B27","v":"Pitlik László, Pitlik Mátyás, Pitlik Marcell, Pitlik László (jun), Varga Zoltán, Barta Gergő, Losonczi György"},":","Magyar statisztikai régiók érintettégi sorrendje a szálláshelyek árbevételének havi adatai alapján eltérő módszertanokkal","  xx  ","http://miau.gau.hu/miau/229/szarvas/szarvas_myx_team_v2.doc"]
[null,"(MY-X team):","(Analyses of time series (months) about the income from accodomation in tourism of statistic regions)",null,null,null,null,null,null,null,null,null,"Analyses of time series ","months) about the income from accodomation in tourism of statistic regions)"]
["miau229","Pitlik László (jun), Pitlik László","MP3: Frauenanteil im Hochschulbereich - Eine komplexe Analyse von internationalen Daten unter dem Gesichtspunkt der Regionalität und von Zeitreihen","(+)",null,{"$f":"F27","v":"miau229"},{"$f":"B29","v":"Pitlik László (jun), Pitlik László"},":","MP3: Frauenanteil im Hochschulbereich - Eine komplexe Analyse von internationalen Daten unter dem Gesichtspunkt der Regionalität und von Zeitreihen","  xx  ","http://miau.gau.hu/miau/229/enyedi2/enyedi2.mp3"]
[null,"(MY-X team):"]
["miau229","Pitlik László (jun), Pitlik László","PPT: Frauenanteil im Hochschulbereich - Eine komplexe Analyse von internationalen Daten unter dem Gesichtspunkt der Regionalität und von Zeitreihen","(+)",null,{"$f":"A31","v":"miau229"},"Pitlik László (jun), Pitlik László",":","PPT: Frauenanteil im Hochschulbereich - Eine komplexe Analyse von internationalen Daten unter dem Gesichtspunkt der Regionalität und von Zeitreihen","  xx  ","http://miau.gau.hu/miau/229/enyedi2/Unesco_Enyedi_pL_PL.ppt"]
[null,"(MY-X team):"]
["miau229","Pitlik László (jun), Pitlik László","Frauenanteil im Hochschulbereich - Eine komplexe Analyse von internationalen Daten unter dem Gesichtspunkt der Regionalität und von Zeitreihen","(+)",null,{"$f":"A33","v":"miau229"},"Pitlik László (jun), Pitlik László",":","Frauenanteil im Hochschulbereich - Eine komplexe Analyse von internationalen Daten unter dem Gesichtspunkt der Regionalität und von Zeitreihen","  xx  ","http://miau.gau.hu/miau/229/enyedi2/frauenanteil_pl_pl.docx"]
[null,"(MY-X team):"]
["miau229","Pitlik Marcell, Pitlik László","MP3: Nemzetközi, nyers és modellezett vízgazdálkodási adatok komplex értékelése idősoros és regionális szempontból","(+)",null,{"$f":"A35","v":"miau229"},"Pitlik Marcell, Pitlik László",":","MP3: Nemzetközi, nyers és modellezett vízgazdálkodási adatok komplex értékelése idősoros és regionális szempontból","  xx  ","http://miau.gau.hu/miau/229/enyedi1/enyedi1.mp3"]
[null,"(MY-X team):","(Complex evaluation of internationaltimeseries from regional point of view in case of data assets about water management)",null,null,null,null,null,null,null,null,null,"Complex evaluation of internationaltimeseries from regional point of view in case of data assets about water management)"]
["miau229","Pitlik Marcell, Pitlik László","PPT: Nemzetközi, nyers és modellezett vízgazdálkodási adatok komplex értékelése idősoros és regionális szempontból","(+)",null,{"$f":"A37","v":"miau229"},"Pitlik Marcell, Pitlik László",":","PPT: Nemzetközi, nyers és modellezett vízgazdálkodási adatok komplex értékelése idősoros és regionális szempontból","  xx  ","http://miau.gau.hu/miau/229/enyedi1/Hlavay_Enyedi_PM_PL.ppt"]
[null,"(MY-X team):","(Complex evaluation of internationaltimeseries from regional point of view in case of data assets about water management)",null,null,null,null,null,null,null,null,null,"Complex evaluation of internationaltimeseries from regional point of view in case of data assets about water management)"]
["miau229","Pitlik Marcell, Pitlik László","Nemzetközi, nyers és modellezett vízgazdálkodási adatok komplex értékelése idősoros és regionális szempontból","(+)",null,{"$f":"A39","v":"miau229"},"Pitlik Marcell, Pitlik László",":","Nemzetközi, nyers és modellezett vízgazdálkodási adatok komplex értékelése idősoros és regionális szempontból","  xx  ","http://miau.gau.hu/miau/229/enyedi1/hlavay_enyedi_pm_pl.docx"]
[null,"(MY-X team):","(Complex evaluation of internationaltimeseries from regional point of view in case of data assets about water management)",null,null,null,null,null,null,null,null,null,"Complex evaluation of internationaltimeseries from regional point of view in case of data assets about water management)"]
["miau229","Pitlik László, Szani Ferenc","Maugli keresése - robotszemmel","(+)",null,{"$f":"A41","v":"miau229"},"Pitlik László, Szani Ferenc",":","Maugli keresése - robotszemmel","  xx  ","http://miau.gau.hu/miau/229/robotszem.pptx"]
[null,"(MY-X team):","(Searching for Maugli based on robot-eyes)",null,null,null,null,null,null,null,null,null,"Searching for Maugli based on robot-eyes)"]
["miau229","Balogh Anikó, Pitlik László, Szani Ferenc","PPT: Ipar4.0 - a tudásmenedzsment legújabb kihívásai az oktatásban (esettanulmány az oktatásról a Jó fogalmának tudományos értelmezése kapcsán)","(+)",null,{"$f":"A43","v":"miau229"},"Balogh Anikó, Pitlik László, Szani Ferenc",":","PPT: Ipar4.0 - a tudásmenedzsment legújabb kihívásai az oktatásban ","  xx  ","http://miau.gau.hu/miau/229/revkomarom/revkomarom_v2.ppt",null,"esettanulmány az oktatásról a Jó fogalmának tudományos értelmezése kapcsán)"]
[null,"(Apertus Nonprofit Kft.):","(Industry4.0: Challenges for knowledge management - scientific interpretation of Good Governance)",null,null,null,null,null,null,null,null,null,"Industry4.0: Challenges for knowledge management - scientific interpretation of Good Governance)"]
["miau229","Balogh Anikó, Pitlik László, Szani Ferenc","Az Ipar4.0: a tudásmenedzsment legújabb kihívásai az oktatásban (esettanulmány az oktatásról a Jó fogalmának tudományos értelmezése kapcsán)","(+)",null,{"$f":"A45","v":"miau229"},"Balogh Anikó, Pitlik László, Szani Ferenc",":","Az Ipar4.0: a tudásmenedzsment legújabb kihívásai az oktatásban ","  xx  ","http://miau.gau.hu/miau/229/revkomarom/cikk7_hun_revkomarom_vttkdoc0_stateofart_final_v2.docx",null,"esettanulmány az oktatásról a Jó fogalmának tudományos értelmezése kapcsán)"]
[null,"(Apertus Nonprofit Kft.):","(Industry4.0: Challenges for knowledge management - scientific interpretation of Good Governance)",null,null,null,null,null,null,null,null,null,"Industry4.0: Challenges for knowledge management - scientific interpretation of Good Governance)"]
["miau230","Pitlik László, Szani Ferenc","PLA-felmérés OLAP-témakörben","(+)",null,{"$f":"A47","v":"miau230"},"Pitlik László, Szani Ferenc",":","PLA-felmérés OLAP-témakörben","  xx  ","http://miau.gau.hu/miau/230/PLA_v2.docx"]
[null,"(Apertus Nonprofit Kft.):","(PLA-oriented tests for OLAP-skills)",null,null,null,null,null,null,null,null,null,"PLA-oriented tests for OLAP-skills)"]
["miau230","Pitlik László, Szani Ferenc","Meta-adatok definiálása származtatott jelenségek esetén OLAP szolgáltatások fejlesztése keretében","(+)",null,{"$f":"A49","v":"miau230"},"Pitlik László, Szani Ferenc",":","Meta-adatok definiálása származtatott jelenségek esetén OLAP szolgáltatások fejlesztése keretében","  xx  ","http://miau.gau.hu/miau/230/olap_education_meta_v2.docx"]
[null,"(Apertus Nonprofit Kft.):","(Definition of meta-data in case of inherited attributes for OLAP services)",null,null,null,null,null,null,null,null,null,"Definition of meta-data in case of inherited attributes for OLAP services)"]
["miau230","Nagy Zoltán, Pitlik László","Helyzet-szimulációs tananyagfejlesztés elmélete és gyakorlata","(+)",null,{"$f":"A51","v":"miau230"},"Nagy Zoltán, Pitlik László",":","Helyzet-szimulációs tananyagfejlesztés elmélete és gyakorlata","  xx  ","http://miau.gau.hu/miau/230/szimulacio_v2.docx"]
[null,"(Apertus Nonprofit Kft.):","(Simulation-based development of learning materials - theory and praxis)",null,null,null,null,null,null,null,null,null,"Simulation-based development of learning materials - theory and praxis)"]
["miau231","Anonim Hallgató","A mindenki-másként-egyforma-elv a szakirodalomban","(+)",null,{"$f":"A53","v":"miau231"},"Anonim Hallgató",":","A mindenki-másként-egyforma-elv a szakirodalomban","  xx  ","http://miau.gau.hu/miau/231/onkomm_mindenki_maskent_egyforma.docx"]
[null,"(SZIE):","(Principle of the object-sameness in the literature)",null,null,null,null,null,null,null,null,null,"Principle of the object-sameness in the literature)"]
["miau231","Alföldy-Boruss András, Pitlik László","NG-stress - adatvizualizációs katalógus","(+)",null,{"$f":"A55","v":"miau231"},"Alföldy-Boruss András, Pitlik László",":","NG-stress - adatvizualizációs katalógus","  xx  ","http://miau.gau.hu/miau/231/NGStress_patterns.pdf"]
[null,"(MY-X team):","(NG-Stress - visual patterns)",null,null,null,null,null,null,null,null,null,"NG-Stress - visual patterns)"]
["miau231","Pitlik László, Balogh Anikó, Szani Ferenc","Kivonat: Értéksorrend-becslés hasonlóságelemzéssel","(+)",null,{"$f":"A57","v":"miau231"},"Pitlik László, Balogh Anikó, Szani Ferenc",":","Kivonat: Értéksorrend-becslés hasonlóságelemzéssel","  xx  ","http://miau.gau.hu/miau/231/mtu2017/ertekkutatas_mtu_1_abs_hu_1012.docx"]
[null,"(Apertus Nonprofit Kft.):","(Ranking objects with similarity analysis)",null,null,null,null,null,null,null,null,null,"Ranking objects with similarity analysis)"]
["miau231","Pitlik László, Balogh Anikó, Szani Ferenc","PPT: Értéksorrend-becslés hasonlóságelemzéssel","(+)",null,{"$f":"A59","v":"miau231"},"Pitlik László, Balogh Anikó, Szani Ferenc",":","PPT: Értéksorrend-becslés hasonlóságelemzéssel","  xx  ","http://miau.gau.hu/miau/231/mtu2017/full1_hu.ppt"]
[null,"(Apertus Nonprofit Kft.):","(Ranking objects with similarity analysis)",null,null,null,null,null,null,null,null,null,"Ranking objects with similarity analysis)"]
["miau231","Pitlik László, Balogh Anikó, Szani Ferenc","Értéksorrend-becslés hasonlóságelemzéssel","(+)",null,{"$f":"A61","v":"miau231"},"Pitlik László, Balogh Anikó, Szani Ferenc",":","Értéksorrend-becslés hasonlóságelemzéssel","  xx  ","http://miau.gau.hu/miau/231/mtu2017/ertekkutatas_mtu_1_full_hu.docx"]
[null,"(Apertus Nonprofit Kft.):","(Ranking objects with similarity analysis)",null,null,null,null,null,null,null,null,null,"Ranking objects with similarity analysis)"]
["miau231","Pitlik László, Balogh Anikó, Szani Ferenc","Kivonat: Multidimensional pairwise comparison - about human-oriented science regarding artificial intelligence and value surveys","(+)",null,{"$f":"A63","v":"miau231"},"Pitlik László, Balogh Anikó, Szani Ferenc",":","Kivonat: Multidimensional pairwise comparison - about human-oriented science regarding artificial intelligence and value surveys","  xx  ","http://miau.gau.hu/miau/231/mtu2017/ertekkutatas_mtu_2_abs_en_1012.docx"]
[null,"(Apertus Nonprofit Kft.):"]
["miau231","Pitlik László, Balogh Anikó, Szani Ferenc","PPT (HU): Multidimensional pairwise comparison - about human-oriented science regarding artificial intelligence and value surveys","(+)",null,{"$f":"A65","v":"miau231"},"Pitlik László, Balogh Anikó, Szani Ferenc",":","PPT ","  xx  ","http://miau.gau.hu/miau/231/mtu2017/full2_hu.ppt",null,"HU): Multidimensional pairwise comparison - about human-oriented science regarding artificial intelligence and value surveys"]
[null,"(Apertus Nonprofit Kft.):"]
["miau231","Pitlik László, Balogh Anikó, Szani Ferenc","PPT (EN): Multidimensional pairwise comparison - about human-oriented science regarding artificial intelligence and value surveys","(+)",null,{"$f":"A67","v":"miau231"},"Pitlik László, Balogh Anikó, Szani Ferenc",":","PPT ","  xx  ","http://miau.gau.hu/miau/231/mtu2017/full2_en.ppt",null,"EN): Multidimensional pairwise comparison - about human-oriented science regarding artificial intelligence and value surveys"]
[null,"(Apertus Nonprofit Kft.):"]
["miau231","Pitlik László, Balogh Anikó, Szani Ferenc","Multidimensional pairwise comparison - about human-oriented science regarding artificial intelligence and value surveys","(+)",null,{"$f":"A69","v":"miau231"},"Pitlik László, Balogh Anikó, Szani Ferenc",":","Multidimensional pairwise comparison - about human-oriented science regarding artificial intelligence and value surveys","  xx  ","http://miau.gau.hu/miau/231/mtu2017/ertekkutatas_mtu_2_full_en_1108.docx"]
[null,"(Apertus Nonprofit Kft.):"]
["miau231","Pitlik László, Balogh Anikó, Szani Ferenc","Kivonat: Pár-összehasonlítások Likert-skálás és/vagy idősoros adatok alapján","(+)",null,{"$f":"A71","v":"miau231"},"Pitlik László, Balogh Anikó, Szani Ferenc",":","Kivonat: Pár-összehasonlítások Likert-skálás és/vagy idősoros adatok alapján","  xx  ","http://miau.gau.hu/miau/231/mtu2017/ertekkutatas_mtu_3_abs_en_1012.docx"]
[null,"(Apertus Nonprofit Kft.):","(Pairwise object comparison based on Likert-scales and time series)",null,null,null,null,null,null,null,null,null,"Pairwise object comparison based on Likert-scales and time series)"]
["miau231","Pitlik László, Balogh Anikó, Szani Ferenc","PPT (HU): Pár-összehasonlítások Likert-skálás és/vagy idősoros adatok alapján","(+)",null,{"$f":"A73","v":"miau231"},"Pitlik László, Balogh Anikó, Szani Ferenc",":","PPT ","  xx  ","http://miau.gau.hu/miau/231/mtu2017/full3_hu.ppt",null,"HU): Pár-összehasonlítások Likert-skálás és/vagy idősoros adatok alapján"]
[null,"(Apertus Nonprofit Kft.):","(Pairwise object comparison based on Likert-scales and time series)",null,null,null,null,null,null,null,null,null,"Pairwise object comparison based on Likert-scales and time series)"]
["miau231","Pitlik László, Balogh Anikó, Szani Ferenc","PPT (EN): Pár-összehasonlítások Likert-skálás és/vagy idősoros adatok alapján","(+)",null,{"$f":"A75","v":"miau231"},"Pitlik László, Balogh Anikó, Szani Ferenc",":","PPT ","  xx  ","http://miau.gau.hu/miau/231/mtu2017/full3_en.pptx",null,"EN): Pár-összehasonlítások Likert-skálás és/vagy idősoros adatok alapján"]
[null,"(Apertus Nonprofit Kft.):","(Pairwise object comparison based on Likert-scales and time series)",null,null,null,null,null,null,null,null,null,"Pairwise object comparison based on Likert-scales and time series)"]
["miau231","Pitlik László, Balogh Anikó, Szani Ferenc","Pár-összehasonlítások Likert-skálás és/vagy idősoros adatok alapján","(+)",null,{"$f":"A77","v":"miau231"},"Pitlik László, Balogh Anikó, Szani Ferenc",":","Pár-összehasonlítások Likert-skálás és/vagy idősoros adatok alapján","  xx  ","http://miau.gau.hu/miau/231/mtu2017/ertekkutatas_mtu_3_full_en_1027.docx"]
[null,"(Apertus Nonprofit Kft.):","(Pairwise object comparison based on Likert-scales and time series)",null,null,null,null,null,null,null,null,null,"Pairwise object comparison based on Likert-scales and time series)"]
["miau232","Pitlik László","Nem deklaratív feladat-értékelési rendszer generálása","(+)",null,{"$f":"A79","v":"miau232"},"Pitlik László",":","Nem deklaratív feladat-értékelési rendszer generálása","  xx  ","http://miau.gau.hu/miau/232/teszt-javaslat-v1.xlsx"]
[null,"(MY-X team):","(Generating a non-declarative evaluation system for testing)",null,null,null,null,null,null,null,null,null,"Generating a non-declarative evaluation system for testing)"]
["miau232","Pitlik László","Inkonzisztencia-vizsgálatok lehetősége kérdőíves válaszok alapján","(+)",null,{"$f":"A81","v":"miau232"},"Pitlik László",":","Inkonzisztencia-vizsgálatok lehetősége kérdőíves válaszok alapján","  xx  ","http://miau.gau.hu/miau/232/elegedettsegi_hermeneutikak_v2.docx"]
[null,"(MY-X team):","(Exploring inconsistences based on questionnaires)",null,null,null,null,null,null,null,null,null,"Exploring inconsistences based on questionnaires)"]
["miau232","Pitlik László, Pitlik László (jun)","Példák az Excel-alapú szemléletformáláshoz","(+)",null,{"$f":"A83","v":"miau232"},"Pitlik László, Pitlik László (jun)",":","Példák az Excel-alapú szemléletformáláshoz","  xx  ","http://miau.gau.hu/miau/232/kerdoiv_demo.xlsx"]
[null,"(MY-X team):","(Examples for Excel-based thinking methodology)",null,null,null,null,null,null,null,null,null,"Examples for Excel-based thinking methodology)"]
["miau232","Pitlik László, Szani Ferenc, Balogh Anikó","Dashboards and OLAP services in LLL and distance learning processes or Experiences about log-based learning- and education-management","(+)",null,{"$f":"A85","v":"miau232"},"Pitlik László, Szani Ferenc, Balogh Anikó",":","Dashboards and OLAP services in LLL and distance learning processes or Experiences about log-based learning- and education-management","  xx  ","http://miau.gau.hu/miau/kofop/hassacc_apertus.ppt"]
[null,"(Apertus Nonprofit Kft.):"]
["miau232","Pitlik László, Szani Ferenc","1 knut, avagy új mértékegység a tudásmenedzsmentben","(+)",null,{"$f":"A87","v":"miau232"},"Pitlik László, Szani Ferenc",":","1 knut, avagy új mértékegység a tudásmenedzsmentben","  xx  ","http://miau.gau.hu/miau/kofop/tomori.mp4"]
[null,"(Apertus Nonprofit Kft.):","(1 knut or a new unit for knowledge management)",null,null,null,null,null,null,null,null,null,"1 knut or a new unit for knowledge management)"]
["miau232","Pitlik László, Balogh Anikó, Szani Ferencen, Schnellbach Máté","Teljesítmény-katalógus 2017","(+)",null,{"$f":"A89","v":"miau232"},"Pitlik László, Balogh Anikó, Szani Ferencen, Schnellbach Máté",":","Teljesítmény-katalógus 2017","  xx  ","http://miau.gau.hu/miau/kofop/2017.docx"]
[null,"(Apertus Nonprofit Kft.):","(Catalogue of performances - 2017)",null,null,null,null,null,null,null,null,null,"Catalogue of performances - 2017)"]
["miau232","Pitlik László, Balogh Anikó, Schnellbach Máté, Szani Ferenc","Dashboards and OLAP services in LLL and distance learning processes or experiences about log-based learning- and education-management","(+)",null,{"$f":"A91","v":"miau232"},"Pitlik László, Balogh Anikó, Schnellbach Máté, Szani Ferenc",":","Dashboards and OLAP services in LLL and distance learning processes or experiences about log-based learning- and education-management","  xx  ","http://miau.gau.hu/miau/kofop/hassacc_244.pdf"]
[null,"(Apertus Nonprofit Kft.):"]